[Event "Bremer Silvester Open-A 2024"]
[Site "Bremen"]
[Date "2024.12.29"]
[Round "6.1"]
[White "Steffens, Olaf"]
[Black "Wachinger, Nikolas"]
[Result "0-1"]
[ECO "D00"]
[WhiteElo "2169"]
[BlackElo "2441"]
[Annotator "RC"]
[PlyCount "60"]
[EventDate "2024.12.16"]
[EventType "swiss"]
[EventCountry "GER"]
[SourceTitle "playchess.com"]
[Source "ChessBase"]
[SourceQuality "1"]
[TimeControl "5400+30"]

1. d4 {[%emt 0:04:09]} Nf6 {[%emt 0:00:31]} 2. Nc3 {[%emt 0:00:27]} d5 {[%emt 0:00:21]} 3. Bf4 {[%emt 0:00:43]} a6 {[%emt 0:01:53]} 4. e3 {[%emt 0:00:24]} h6 {[%emt 0:00:23]} 5. Nf3 {[%emt 0:02:02]} e6 {[%emt 0:02:57]} 6. Bd3 {[%emt 0:01:14]} c5 {[%emt 0:01:29]} 7. dxc5 {[%emt 0:01:43]} Bxc5 {[%emt 0:00:49]} 8. e4 {[%emt 0:00:51]} Bb4 {[%emt 0:11:58]} 9. e5 {[%emt 0:00:54]} Nfd7 {[%emt 0:03:30]} 10. h4 {[%emt 0:02:12]} Qc7 {[%emt 0:13:46]} 11. Qd2 {[%emt 0:17:31]} Nc6 {[%emt 0:02:35]} 12. a3 {[%emt 0:02:57]} Ba5 {[%emt 0:02:26]} 13. Kf1 {[%emt 0:23:41]} d4 {[%emt 0:14:35]} 14. Nd5 {[%emt 0:00:44]} exd5 {[%emt 0:00:41]} 15. b4 {[%emt 0:00:22]} Qd8 {[%emt 0:16:27]} 16. bxa5 {[%emt 0:02:45]} Nc5 {[%emt 0:00:27]} 17. Be2 {[%emt 0:24:21]} Ne4 {[%emt 0:06:01]} 18. Qe1 {[%emt 0:00:17]} O-O {[%emt 0:06:14]} 19. Bd3 {[%emt 0:01:19]} Bf5 {[%emt 0:02:48]} 20. g4 {[%emt 0:00:53]} Bxg4 {[%emt 0:00:46]} 21. Bxe4 {[%emt 0:00:24]} dxe4 {[%emt 0:00:08]} 22. Qxe4 {[%emt 0:00:22]} f5 {[%emt 0:01:01]} 23. Qd3 {[%emt 0:03:41]} Qd5 {[%emt 0:00:03]} 24. Kg2 {[%emt 0:00:28]} Nxa5 {[%emt 0:04:55]} 25. Kg3 {[%emt 0:00:46]} Rac8 {[%emt 0:01:03]} 26. Nxd4 {[%emt 0:01:19]} Rc4 {[%emt 0:00:36]} 27. Nxf5 {[%emt 0:02:11]} Qe6 {[%emt 0:03:29]} 28. Kxg4 {[%emt 0:02:11]} Rxf5 {[%emt 0:00:11]} 29. Qxf5 {[%emt 0:00:43]} h5+ {[%emt 0:00:06]} 30. Kg5 {[%emt 0:00:36]} Qh6# {[%emt 0:00:07]} 0-1

[Event "Bremer Silvester Open-A 2024"]
[Site "Bremen"]
[Date "2024.12.29"]
[Round "6.2"]
[White "Kramer, Julian"]
[Black "Reuker, Jari"]
[Result "1/2-1/2"]
[ECO "C54"]
[WhiteElo "2480"]
[BlackElo "2408"]
[Annotator "TA"]
[PlyCount "109"]
[EventDate "2024.12.16"]
[EventType "swiss"]
[EventCountry "GER"]
[SourceTitle "playchess.com"]
[Source "ChessBase"]
[SourceQuality "1"]
[TimeControl "5400+30"]

{[%evp 35,109,5,16,12,27,25,36,36,0,0,0,0,0,0,0,0,0,0,0,0,0,0,0,-27,-31,-35,-29,-27,-22,-10,-3,-22,-19,-18,-27,-23,-23,-19,-13,-69,-47,-58,-22,-31,-28,-14,-23,-22,-7,-16,-22,-27,0,-8,0,-8,0,0,27,0,0,0,261,0,0,0,286,0,0,0,250,2,7,0,0,0]} 1. e4 {[%emt 0:00:36]} e5 {[%emt 0:00:05]} 2. Nf3 {[%emt 0:00:25]} Nc6 {[%emt 0:00:06]} 3. Bc4 {[%emt 0:00:04]} Bc5 {[%emt 0:00:07]} 4. O-O {[%emt 0:00:15]} Nf6 {[%emt 0:00:05]} 5. d3 {[%emt 0:00:03]} O-O {[%emt 0:00:09]} 6. h3 {[%emt 0:01:22]} d6 {[%emt 0:00:17]} 7. c3 {[%emt 0:00:20]} a5 {[%emt 0:00:14]} 8. Re1 {[%emt 0:01:27]} h6 {[%emt 0:00:08]} 9. Nbd2 {[%emt 0:00:16]} a4 {[%emt 0:00:13]} 10. Nf1 {[%emt 0:04:18]} Bd7 {[%emt 0:00:27]} 11. a3 {[%emt 0:02:47]} Bb6 {[%emt 0:02:13]} 12. Ng3 {[%emt 0:05:15]} Re8 {[%emt 0:04:53]} 13. Be3 {[%emt 0:04:46]} Bxe3 {[%emt 0:00:37]} 14. Rxe3 {[%emt 0:00:07]} Ra5 {[%emt 0:12:43]} 15. b4 {[%emt 0:07:42]} axb3 {[%emt 0:00:54]} 16. Qxb3 {[%emt 0:00:05]} Qe7 {[%emt 0:03:19]} 17. Nh4 {[%emt 0:01:19]} Be6 {[%emt 0:06:46]} 18. Ngf5 {[%emt 0:19:03]} (18. Qxb7 Rb8 19. Qxc6 $17) 18... Qd7 {[%emt 0:00:41]} 19. Bxe6 $1 {[%emt 0:02:18]} (19. Qxb7 Bxc4 20. dxc4 g6 $17 (20... Rb8 21. Qxc6 Qd8 22. c5 $16)) (19. Rg3 Nh5 (19... Bxf5 $2 20. Nxf5 Kf8 21. Nxg7 $18) 20. Rg4 (20. Nxh6+ Kh7 $17) 20... Bxc4 21. Qxc4 Kh7 $15) 19... fxe6 {[%emt 0:07:01]} (19... Rxe6 20. Qxb7 Kh7 21. Ree1 Re8) 20. Rg3 $1 {[%emt 0:00:57]} g5 {[%emt 0:23:54]} 21. Nxh6+ {[%emt 0:06:08]} Kh7 $1 {[%emt 0:00:04]} 22. Rxg5 {[%emt 0:01:30]} Kxh6 {[%emt 0:00:04]} 23. Rg6+ {[%emt 0:00:06]} Kh7 $1 {[%emt 0:00:11]} 24. Rxf6 {[%emt 0:00:31]} Qe7 $1 {[%emt 0:00:32]} 25. Rf3 {[%emt 0:15:14]} Qxh4 {[%emt 0:00:07]} 26. Rf7+ {[%emt 0:01:56]} Kg6 {[%emt 0:01:31]} 27. Rxc7 {[%emt 0:00:10]} Nd8 {[%emt 0:10:19]} 28. Rd7 {[%emt 0:03:49]} Ra6 {[%emt 0:00:36]} 29. Re1 {[%emt 0:01:27]} Rf8 {[%emt 0:00:58]} 30. Qb2 {[%emt 0:00:07]} Rf7 {[%emt 0:03:20]} 31. Rxf7 $1 {[%emt 0:00:18]} Kxf7 {[%emt 0:00:33]} (31... Nxf7 32. Qxb7 Rxa3 33. Qb2 $17) 32. Re3 {[%emt 0:00:44]} Ke7 {[%emt 0:02:21]} 33. Rg3 {[%emt 0:01:52]} Qh6 {[%emt 0:00:35]} 34. d4 {[%emt 0:02:07]} exd4 {[%emt 0:04:10]} 35. cxd4 {[%emt 0:00:05]} Rc6 {[%emt 0:00:10]} 36. Re3 {[%emt 0:02:43]} Rc4 {[%emt 0:03:03]} 37. Re1 {[%emt 0:09:13]} (37. Rc3 $11 Rxc3 38. Qxc3) 37... Qf4 $15 {[%emt 0:01:17]} 38. Re3 {[%emt 0:01:04]} Qg5 {[%emt 0:02:38]} 39. g3 {[%emt 0:00:49]} Qh5 {[%emt 0:00:26]} 40. g4 $1 {[%emt 0:02:42]} Qg5 {[%emt 0:00:38]} 41. Kg2 {[%emt 0:00:05]} Qf4 {[%emt 0:00:19]} 42. Qd2 {[%emt 0:01:24]} Nc6 {[%emt 0:02:38]} 43. Qb2 {[%emt 0:00:04]} Nd8 {[%emt 0:00:42]} (43... Rxd4 $2 44. Qxb7+ Kf6 45. Qxc6 $18 (45. Rf3 Qxf3+ 46. Kxf3 Ne5+ 47. Ke2 Ng6 $18)) 44. d5 {[%emt 0:00:38]} e5 {[%emt 0:00:57]} (44... Rxe4 $2 {loses.} 45. Qg7+ Qf7 (45... Nf7 $2 46. Rb3 $18) 46. Qxf7+ (46. Qg5+ Qf6 $18) 46... Kxf7 47. Rxe4 $18) (44... Qe5 45. Qxe5 dxe5 46. dxe6 Nxe6 47. h4 Kf6) 45. Qe2 {[%emt 0:00:10]} Rd4 {[%emt 0:00:49]} 46. Qc2 {[%emt 0:01:02]} Kd7 {[%emt 0:00:40]} 47. a4 {[%emt 0:00:21]} (47. Rf3 {simplifies} Qxe4 48. Qxe4 Rxe4 49. g5) 47... Rb4 {[%emt 0:01:51]} 48. a5 {[%emt 0:00:22]} Rd4 $2 {[%emt 0:00:25][%mdl 8192] [#]} (48... Ke8 $1 $11 {and Black stays safe.}) 49. Qb1 $2 {[%emt 0:00:54]} (49. Rf3 $1 $18 {[%cal Rf3f4]} Qxe4 50. Qxe4 Rxe4 51. g5) 49... Ke7 $11 {[%emt 0:00:42]} 50. Qc2 {[%emt 0:01:41]} Kd7 $2 {[%emt 0:00:04][%mdl 8192]} (50... Ke8 $11) 51. Qb1 {[%emt 0:01:08]} Ke7 {[%emt 0:00:08]} 52. Qc2 {[%emt 0:01:31]} Kd7 {[%emt 0:00:06] [#]} 53. Qe2 $2 {[%emt 0:00:10]} (53. Rf3 $1 $18 {[%cal Rf3f4]} Qh6 (53... Qxe4 54. Qxe4 Rxe4 55. g5 $18) 54. Kg3) 53... Ke7 $11 {[%emt 0:00:12]} 54. a6 {[%emt 0:02:00]} bxa6 {[%emt 0:09:32]} 55. Qxa6 {[%emt 0:00:30]} 1/2-1/2

[Event "Bremer Silvester Open-A 2024"]
[Site "Bremen"]
[Date "2024.12.29"]
[Round "6.3"]
[White "Pahl, Erik"]
[Black "Beeck, Mats"]
[Result "0-1"]
[ECO "C84"]
[WhiteElo "2166"]
[BlackElo "2241"]
[Annotator "RC"]
[PlyCount "50"]
[EventDate "2024.12.16"]
[EventType "swiss"]
[EventCountry "GER"]
[SourceTitle "playchess.com"]
[Source "ChessBase"]
[SourceQuality "1"]
[TimeControl "5400+30"]

1. e4 {[%emt 0:00:09]} e5 {[%emt 0:00:07]} 2. Nf3 {[%emt 0:00:07]} Nc6 {[%emt 0:00:05]} 3. Bb5 {[%emt 0:00:06]} a6 {[%emt 0:00:21]} 4. Ba4 {[%emt 0:00:06]} Nf6 {[%emt 0:00:09]} 5. O-O {[%emt 0:00:08]} Be7 {[%emt 0:00:33]} 6. d3 {[%emt 0:00:25]} b5 {[%emt 0:00:10]} 7. Bb3 {[%emt 0:00:04]} d6 {[%emt 0:00:11]} 8. a3 {[%emt 0:00:06]} a5 {[%emt 0:00:43]} 9. Nc3 {[%emt 0:16:26]} a4 {[%emt 0:01:07]} 10. Bd5 {[%emt 0:01:08]} Nxd5 {[%emt 0:02:43]} 11. exd5 {[%emt 0:00:12]} Na7 {[%emt 0:01:42]} 12. d4 {[%emt 0:00:16]} exd4 {[%emt 0:06:02]} 13. Nxd4 {[%emt 0:01:17]} O-O {[%emt 0:00:43]} 14. Re1 {[%emt 0:04:02]} Bd7 {[%emt 0:03:39]} 15. Qd3 {[%emt 0:02:28]} Rb8 {[%emt 0:10:24]} 16. Be3 {[%emt 0:06:29]} c5 {[%emt 0:01:47]} 17. dxc6 {[%emt 0:00:49]} Nxc6 {[%emt 0:00:09]} 18. Nxc6 {[%emt 0:16:18]} Bxc6 {[%emt 0:00:27]} 19. Nd5 {[%emt 0:00:21]} Re8 {[%emt 0:10:14]} 20. c3 {[%emt 0:00:39]} Bg5 {[%emt 0:01:18]} 21. Nb4 {[%emt 0:12:28]} Ba8 {[%emt 0:11:53]} 22. Rad1 {[%emt 0:10:35]} Bxe3 {[%emt 0:01:35]} 23. Rxe3 {[%emt 0:00:12]} Qg5 {[%emt 0:02:31]} 24. Rg3 {[%emt 0:00:49]} Qe5 {[%emt 0:01:37]} 25. Nc2 {[%emt 0:05:42]} Be4 {[%emt 0:01:43]} 0-1

[Event "Bremer Silvester Open-A 2024"]
[Site "Bremen"]
[Date "2024.12.29"]
[Round "6.4"]
[White "Hedke, Fred"]
[Black "Pahl, Theis"]
[Result "1/2-1/2"]
[ECO "B22"]
[WhiteElo "2171"]
[BlackElo "2136"]
[Annotator "RC"]
[PlyCount "29"]
[EventDate "2024.12.16"]
[EventType "swiss"]
[EventCountry "GER"]
[SourceTitle "playchess.com"]
[Source "ChessBase"]
[SourceQuality "1"]
[TimeControl "5400+30"]

1. e4 {[%emt 1:31:00]} c5 {[%emt 0:00:20]} 2. c3 {[%emt 0:00:00]} Nf6 {[%emt 0:00:08]} 3. e5 {[%emt 0:00:00]} Nd5 {[%emt 0:00:06]} 4. Nf3 {[%emt 0:00:00]} Nc6 {[%emt 0:00:23]} 5. d4 {[%emt 0:00:00]} cxd4 {[%emt 0:00:11]} 6. Bc4 {[%emt 0:00:00]} Nb6 {[%emt 0:00:18]} 7. Bb3 {[%emt 0:00:00]} d6 {[%emt 0:01:35]} 8. exd6 {[%emt 0:00:00]} Qxd6 {[%emt 0:00:08]} 9. cxd4 {[%emt 0:00:00]} Be6 {[%emt 0:01:04]} 10. Nc3 {[%emt 0:00:00]} Bxb3 {[%emt 0:00:36]} 11. Qxb3 {[%emt 0:00:00]} e6 {[%emt 0:00:07]} 12. O-O {[%emt 0:00:00]} Qb4 {[%emt 0:02:50]} 13. Qc2 {[%emt 0:00:00]} Be7 {[%emt 0:00:31]} 14. a3 {[%emt 0:00:00]} Qc4 {[%emt 0:01:11]} 15. b3 {[%emt 0:00:00]} 1/2-1/2

[Event "Bremer Silvester Open-A 2024"]
[Site "Bremen"]
[Date "2024.12.29"]
[Round "6.5"]
[White "Gressmann, Moritz"]
[Black "Donath, Johann"]
[Result "1/2-1/2"]
[ECO "C96"]
[WhiteElo "2122"]
[BlackElo "2100"]
[Annotator "RC"]
[PlyCount "47"]
[EventDate "2024.12.16"]
[EventType "swiss"]
[EventCountry "GER"]
[SourceTitle "playchess.com"]
[Source "ChessBase"]
[SourceQuality "1"]
[TimeControl "5400+30"]

1. e4 {[%emt 0:00:02]} e5 {[%emt 0:00:15]} 2. Nf3 {[%emt 0:00:05]} Nc6 {[%emt 0:00:03]} 3. Bb5 {[%emt 0:00:06]} a6 {[%emt 0:00:06]} 4. Ba4 {[%emt 0:00:05]} Nf6 {[%emt 0:00:07]} 5. O-O {[%emt 0:00:07]} Be7 {[%emt 0:00:06]} 6. Re1 {[%emt 0:00:08]} b5 {[%emt 0:00:08]} 7. Bb3 {[%emt 0:00:05]} d6 {[%emt 0:00:05]} 8. c3 {[%emt 0:00:06]} O-O {[%emt 0:00:14]} 9. h3 {[%emt 0:00:11]} Na5 {[%emt 0:00:11]} 10. Bc2 {[%emt 0:00:11]} c5 {[%emt 0:00:06]} 11. d4 {[%emt 0:00:10]} Nd7 {[%emt 0:00:12]} 12. Nbd2 {[%emt 0:00:18]} exd4 {[%emt 0:00:14]} 13. cxd4 {[%emt 0:00:07]} Nc6 {[%emt 0:00:06]} 14. d5 {[%emt 0:00:12]} Nce5 {[%emt 0:00:05]} 15. Nxe5 {[%emt 0:00:15]} Nxe5 {[%emt 0:00:07]} 16. f4 {[%emt 0:00:15]} Ng6 {[%emt 0:00:06]} 17. Nf3 {[%emt 0:00:12]} Bh4 {[%emt 0:00:20]} 18. Nxh4 {[%emt 0:00:24]} Qxh4 {[%emt 0:00:08]} 19. Rf1 {[%emt 0:00:34]} Bxh3 {[%emt 0:00:21]} 20. gxh3 {[%emt 0:00:20]} Qg3+ {[%emt 0:00:06]} 21. Kh1 {[%emt 0:00:05]} Qxh3+ {[%emt 0:00:06]} 22. Kg1 {[%emt 0:00:05]} Qg3+ {[%emt 0:00:04]} 23. Kh1 {[%emt 0:00:05]} Qh3+ {[%emt 0:00:04]} 24. Kg1 {[%emt 0:00:07]} 1/2-1/2

[Event "Bremer Silvester Open-A 2024"]
[Site "Bremen"]
[Date "2024.12.29"]
[Round "6.6"]
[White "Moewisch, Dave"]
[Black "Wielebinski, Paul Martin"]
[Result "0-1"]
[ECO "B30"]
[WhiteElo "1961"]
[BlackElo "2067"]
[Annotator "NA RC"]
[PlyCount "72"]
[EventDate "2024.12.16"]
[EventType "swiss"]
[EventCountry "GER"]
[SourceTitle "playchess.com"]
[Source "ChessBase"]
[SourceQuality "1"]
[TimeControl "5400+30"]

1. e4 {[%emt 0:00:05]} c5 {[%emt 0:00:08]} 2. Nf3 {[%emt 0:00:16]} Nc6 {[%emt 0:00:08]} 3. Bb5 {[%emt 0:00:17]} Na5 {[%emt 0:00:10]} 4. O-O {[%emt 0:00:53]} a6 {[%emt 0:00:08]} 5. Be2 {[%emt 0:00:06]} e6 {[%emt 0:00:06]} 6. c4 {[%emt 0:00:15]} Nc6 {[%emt 0:01:19]} 7. d4 {[%emt 0:02:05]} cxd4 {[%emt 0:00:17]} 8. Nxd4 {[%emt 0:00:06]} Bc5 {[%emt 0:00:49]} 9. Nb3 {[%emt 0:01:35]} Bb6 {[%emt 0:00:39]} 10. Nc3 {[%emt 0:03:42]} Nge7 {[%emt 0:01:37]} 11. c5 {[%emt 0:07:28]} Bc7 {[%emt 0:00:29]} 12. f4 {[%emt 0:03:34]} d5 {[%emt 0:07:16]} 13. cxd6 {[%emt 0:07:03]} Bxd6 {[%emt 0:01:35]} 14. Be3 {[%emt 0:00:40]} O-O {[%emt 0:08:07]} 15. Qe1 {[%emt 0:10:14]} e5 {[%emt 0:14:37]} 16. f5 {[%emt 0:03:23]} Nd4 {[%emt 0:00:20]} 17. f6 {[%emt 0:07:56]} gxf6 {[%emt 0:09:41]} 18. Bh6 {[%emt 0:05:11]} Nc2 {[%emt 0:01:58]} 19. Qf2 {[%emt 0:01:34]} Nxa1 {[%emt 0:02:53]} 20. Nxa1 {[%emt 0:06:50]} Ng6 {[%emt 0:02:17]} 21. h4 {[%emt 0:05:08]} Kh8 {[%emt 0:07:42]} 22. Bxf8 {[%emt 0:10:31]} Bxf8 {[%emt 0:00:21]} 23. Rd1 {[%emt 0:00:45]} Qe7 {[%emt 0:00:30]} 24. Kh2 {[%emt 0:01:07]} Be6 {[%emt 0:01:33]} 25. g3 {[%emt 0:00:16]} Bg7 {[%emt 0:01:33]} 26. Qe3 {[%emt 0:03:30]} h6 {[%emt 0:04:11]} 27. Nc2 {[%emt 0:00:49]} Rd8 {[%emt 0:00:26]} 28. Rxd8+ {[%emt 0:01:23]} Qxd8 {[%emt 0:00:01]} 29. Nb4 {[%emt 0:00:13]} Ne7 {[%emt 0:01:39]} 30. Qc5 {[%emt 0:02:22]} f5 {[%emt 0:00:39]} 31. Ncd5 {[%emt 0:00:44]} Nxd5 {[%emt 0:03:17]} 32. exd5 {[%emt 0:00:22]} Bd7 {[%emt 0:00:27]} 33. Bh5 {[%emt 0:02:59]} f4 {[%emt 0:01:18]} 34. d6 {[%emt 0:01:20]} fxg3+ {[%emt 0:00:26]} 35. Kxg3 {[%emt 0:00:06]} Qf6 {[%emt 0:01:57]} 36. Nd3 {[%emt 0:01:29]} Qf5 {[%emt 0:00:46]} 0-1

[Event "Bremer Silvester Open-A 2024"]
[Site "Bremen"]
[Date "2024.12.29"]
[Round "6.7"]
[White "Storm, Max"]
[Black "Kehrel, Eike"]
[Result "1-0"]
[ECO "B36"]
[WhiteElo "2053"]
[BlackElo "2007"]
[Annotator "RC"]
[PlyCount "79"]
[EventDate "2024.12.16"]
[EventType "swiss"]
[EventCountry "GER"]
[SourceTitle "playchess.com"]
[Source "ChessBase"]
[SourceQuality "1"]
[TimeControl "5400+30"]

1. e4 {[%emt 0:00:02]} c5 {[%emt 0:00:06]} 2. Nf3 {[%emt 0:00:05]} g6 {[%emt 0:00:11]} 3. c4 {[%emt 0:00:33]} Nc6 {[%emt 0:00:38]} 4. d4 {[%emt 0:00:13]} cxd4 {[%emt 0:00:05]} 5. Nxd4 {[%emt 0:00:05]} Nf6 {[%emt 0:00:15]} 6. Nc3 {[%emt 0:00:18]} d6 {[%emt 0:00:14]} 7. Be2 {[%emt 0:00:30]} Nxd4 {[%emt 0:00:06]} 8. Qxd4 {[%emt 0:00:08]} Bg7 {[%emt 0:00:09]} 9. Be3 {[%emt 0:01:20]} O-O {[%emt 0:01:12]} 10. Qd1 {[%emt 0:03:03]} Be6 {[%emt 0:07:49]} 11. O-O {[%emt 0:02:43]} Qa5 {[%emt 0:04:03]} 12. Rc1 {[%emt 0:05:07]} Rfc8 {[%emt 0:00:29]} 13. b3 {[%emt 0:04:38]} a6 {[%emt 0:33:35]} 14. Nd5 {[%emt 0:21:55]} Bxd5 {[%emt 0:05:49]} 15. exd5 {[%emt 0:00:11]} b5 {[%emt 0:04:16]} 16. Qd2 {[%emt 0:02:24]} b4 {[%emt 0:06:33]} 17. Bf3 {[%emt 0:06:38]} Nd7 {[%emt 0:01:04]} 18. a4 {[%emt 0:00:54]} Bc3 {[%emt 0:03:06]} 19. Qc2 {[%emt 0:01:02]} Qd8 {[%emt 0:00:36]} 20. Bg4 {[%emt 0:01:57]} f5 {[%emt 0:00:22]} 21. Be2 {[%emt 0:01:01]} Qf8 {[%emt 0:00:40]} 22. f4 {[%emt 0:03:05]} Qf6 {[%emt 0:04:48]} 23. Rcd1 {[%emt 0:04:44]} h5 {[%emt 0:02:20]} 24. Bf3 {[%emt 0:02:09]} Kf7 {[%emt 0:02:14]} 25. Rf2 {[%emt 0:01:49]} Rc7 {[%emt 0:08:58]} 26. Re2 {[%emt 0:00:43]} h4 {[%emt 0:05:08]} 27. Bf2 {[%emt 0:00:52]} Qh8 {[%emt 0:02:44]} 28. Re6 {[%emt 0:02:00]} Bf6 {[%emt 0:01:18]} 29. Kh1 {[%emt 0:09:11]} a5 {[%emt 0:01:22]} 30. Rde1 {[%emt 0:01:27]} Nc5 {[%emt 0:02:06]} 31. R6e2 {[%emt 0:09:41]} Bd4 {[%emt 0:01:51]} 32. Be3 {[%emt 0:01:27]} Bxe3 {[%emt 0:00:28]} 33. Rxe3 {[%emt 0:00:04]} Qh6 {[%emt 0:00:12]} 34. Qe2 {[%emt 0:02:05]} Re8 {[%emt 0:00:31]} 35. Rf1 {[%emt 0:01:31]} Qxf4 {[%emt 0:00:45]} 36. Bh5 {[%emt 0:01:00]} Qh6 {[%emt 0:01:19]} 37. Rxf5+ {[%emt 0:02:35]} Kg8 {[%emt 0:00:07]} 38. Qg4 {[%emt 0:01:55]} Rf8 {[%emt 0:00:53]} 39. Bxg6 {[%emt 0:03:06]} Qxe3 {[%emt 0:01:00]} 40. Bf7+ {[%emt 0:00:15]} 1-0

[Event "Bremer Silvester Open-A 2024"]
[Site "Bremen"]
[Date "2024.12.29"]
[Round "6.8"]
[White "Bundan, Edward"]
[Black "Tibke, Jonas"]
[Result "0-1"]
[ECO "E01"]
[WhiteElo "1822"]
[BlackElo "2039"]
[Annotator "RC"]
[PlyCount "112"]
[EventDate "2024.12.16"]
[EventType "swiss"]
[EventCountry "GER"]
[SourceTitle "playchess.com"]
[Source "ChessBase"]
[SourceQuality "1"]
[TimeControl "5400+30"]

1. d4 {[%emt 0:00:02]} Nf6 {[%emt 0:00:08]} 2. Nf3 {[%emt 0:00:13]} e6 {[%emt 0:00:07]} 3. g3 {[%emt 0:00:34]} c5 {[%emt 0:00:37]} 4. Bg2 {[%emt 0:01:51]} cxd4 {[%emt 0:01:44]} 5. Nxd4 {[%emt 0:00:16]} d5 {[%emt 0:02:27]} 6. O-O {[%emt 0:01:01]} Nc6 {[%emt 0:00:33]} 7. c4 {[%emt 0:02:00]} Qb6 {[%emt 0:11:29]} 8. Nxc6 {[%emt 0:05:59]} bxc6 {[%emt 0:00:10]} 9. Nc3 {[%emt 0:02:26]} Be7 {[%emt 0:04:43]} 10. cxd5 {[%emt 0:10:44]} cxd5 {[%emt 0:01:49]} 11. e4 {[%emt 0:03:08]} dxe4 {[%emt 0:18:49]} 12. Nxe4 {[%emt 0:01:12]} Nd5 {[%emt 0:02:15]} 13. Qg4 {[%emt 0:05:59]} O-O {[%emt 0:04:52]} 14. Bh6 {[%emt 0:02:43]} Qxb2 {[%emt 0:00:42]} 15. Nd2 {[%emt 0:27:14]} Rd8 {[%emt 0:21:28]} 16. Nc4 {[%emt 0:06:35]} Qf6 {[%emt 0:01:29]} 17. Be3 {[%emt 0:00:58]} Ba6 {[%emt 0:02:58]} 18. Rfc1 {[%emt 0:03:16]} Nxe3 {[%emt 0:02:37]} 19. Nxe3 {[%emt 0:01:09]} Rab8 {[%emt 0:01:33]} 20. Rab1 {[%emt 0:01:07]} Rb2 {[%emt 0:04:52]} 21. Rxb2 {[%emt 0:02:29]} Qxb2 {[%emt 0:00:09]} 22. Rd1 {[%emt 0:02:16]} Rxd1+ {[%emt 0:03:44]} 23. Qxd1 {[%emt 0:00:28]} Qxa2 {[%emt 0:00:41]} 24. h3 {[%emt 0:01:23]} Bb5 {[%emt 0:03:09]} 25. Qc1 {[%emt 0:02:19]} Bf8 {[%emt 0:09:55]} 26. Qc8 {[%emt 0:16:08]} Qa1+ {[%emt 0:00:00]} 27. Kh2 {[%emt 0:00:30]} Qe1 {[%emt 0:01:00]} 28. Qc2 {[%emt 0:00:30]} Qe2 {[%emt 0:00:30]} 29. Qxe2 {[%emt 0:00:00]} Bxe2 {[%emt 0:00:30]} 30. Nc2 {[%emt 0:01:00]} Bc5 {[%emt 0:00:30]} 31. f4 {[%emt 0:00:00]} Bb5 32. Na1 {[%emt 0:01:00]} a5 {[%emt 0:01:00]} 33. Nb3 {[%emt 0:00:00]} Bb6 {[%emt 0:00:00]} 34. Be4 {[%emt 0:00:00]} a4 {[%emt 0:00:00]} 35. Nc1 {[%emt 0:00:00]} Bc4 36. Bb1 {[%emt 0:02:00]} Be3 {[%emt 0:02:00]} 37. Na2 {[%emt 0:00:30]} Bd2 {[%emt 0:00:30]} 38. Kg2 {[%emt 0:00:30]} g6 {[%emt 0:00:30]} 39. Kf3 {[%emt 0:00:30]} f5 {[%emt 0:00:30]} 40. Kf2 {[%emt 0:00:30]} Kf8 {[%emt 0:00:00]} 41. Kf3 {[%emt 0:00:00]} Ke7 {[%emt 0:00:00]} 42. g4 {[%emt 0:00:00]} Kd6 {[%emt 0:00:00]} 43. gxf5 {[%emt 0:00:00]} exf5 {[%emt 0:00:00]} 44. h4 {[%emt 0:00:00]} Kc5 {[%emt 0:00:00]} 45. Kg3 {[%emt 0:00:00]} Kd4 {[%emt 0:00:00]} 46. Kf3 {[%emt 0:00:00]} h5 {[%emt 0:00:00]} 47. Kg3 {[%emt 0:00:00]} Ke3 {[%emt 0:00:00]} 48. Bc2 {[%emt 0:00:00]} Bxa2 {[%emt 0:00:00]} 49. Bxa4 {[%emt 0:00:00]} Bf7 {[%emt 0:00:00]} 50. Bc6 {[%emt 0:00:00]} Be1+ {[%emt 0:00:00]} 51. Kh3 {[%emt 0:00:00]} Kxf4 {[%emt 0:00:00]} 52. Bb7 {[%emt 0:00:00]} Ke3 {[%emt 0:00:17]} 53. Bg2 {[%emt 0:00:00]} f4 {[%emt 0:00:16]} 54. Bh1 {[%emt 0:00:00]} Kf2 {[%emt 0:00:44]} 55. Bg2 {[%emt 0:00:00]} f3 {[%emt 0:00:32]} 56. Bh1 {[%emt 0:00:00]} Kg1 {[%emt 0:00:31]} 0-1